bitfinex/quotes_BTCUSD_20250505
["timestamp","ask_amount","ask_price","bid_price","bid_amount"]
[1746432478247,3.76286213,94989.0,94988.0,33.9219747]
[1746432480187,3.77936932,94989.0,94988.0,33.9219747]
[1746432480317,3.57569732,94989.0,94988.0,33.9219747]
[1746432480743,3.53026632,94989.0,94988.0,33.9219747]
[1746432480928,2.46830132,94989.0,94988.0,33.9219747]
[1746432481123,1.98349832,94989.0,94988.0,33.9219747]
[1746432486455,1.96699113,94989.0,94988.0,33.9219747]
[1746432489224,1.17223113,94989.0,94988.0,33.9219747]
[1746432489600,3.38159888,94989.0,94988.0,33.9219747]
[1746432489811,5.91509473,94989.0,94988.0,33.9219747]
[1746432490013,5.90266013,94989.0,94988.0,33.9219747]
[1746432490157,5.85859013,94989.0,94988.0,33.9219747]
[1746432490547,5.18084713,94989.0,94988.0,33.9219747]
[1746432490744,4.49564013,94989.0,94988.0,33.9219747]
[1746432490946,4.20420013,94989.0,94988.0,33.9219747]
[1746432491149,3.68425513,94989.0,94988.0,33.9219747]
[1746432494590,3.56528793,94989.0,94988.0,33.9219747]
[1746432495324,3.54878113,94989.0,94988.0,33.9219747]
[1746432496942,3.25249613,94989.0,94988.0,33.9219747]
[1746432497139,3.00644213,94989.0,94988.0,33.9219747]
[1746432497352,1.39513428,94989.0,94988.0,33.9219747]
[1746432497553,1.72154428,94989.0,94988.0,33.9219747]
[1746432498381,1.73805011,94989.0,94988.0,33.9219747]
[1746432499779,1.14248811,94989.0,94988.0,33.9219747]
[1746432499980,2.03953611,94989.0,94988.0,33.9219747]
[1746432500689,1.96543611,94989.0,94988.0,33.9219747]
[1746432500889,1.93087611,94989.0,94988.0,33.9219747]
[1746432503651,2.14551911,94989.0,94988.0,33.9219747]
[1746432505679,2.12901328,94989.0,94988.0,33.9219747]
[1746432507675,2.23453357,94989.0,94988.0,33.9219747]
[1746432507824,2.12901328,94989.0,94988.0,33.9219747]
[1746432509353,2.09219328,94989.0,94988.0,33.9219747]
[1746432509582,1.80819928,94989.0,94988.0,33.9219747]
[1746432512744,1.82470546,94989.0,94988.0,33.9219747]
[1746432513144,1.80819928,94989.0,94988.0,33.9219747]
[1746432515350,1.79130728,94989.0,94988.0,33.9219747]
[1746432515502,1.12598228,94989.0,94988.0,33.9219747]
[1746432516209,1.12498228,94989.0,94988.0,33.9219747]
[1746432516415,1.12598228,94989.0,94988.0,33.9219747]
[1746432516963,1.12498228,94989.0,94988.0,33.9219747]
[1746432517176,1.12598228,94989.0,94988.0,33.9219747]
[1746432520936,1.1424884,94989.0,94988.0,33.9219747]
[1746432525769,1.12598228,94989.0,94988.0,33.9219747]
[1746432528998,1.14248837,94989.0,94988.0,33.9219747]
[1746432529214,1.12598228,94989.0,94988.0,33.9219747]
[1746432535504,1.1424878,94989.0,94988.0,33.9219747]
[1746432535692,1.12598228,94989.0,94988.0,33.9219747]
[1746432539991,1.14248813,94989.0,94988.0,33.9219747]
[1746432541176,2.31319727,94989.0,94988.0,33.9219747]
[1746432541348,5.38649961,94989.0,94988.0,33.8900747]
[1746432541584,6.30596551,94989.0,94988.0,33.8900747]
[1746432541779,6.32246661,94989.0,94988.0,33.8900747]
[1746432542745,5.95783151,94989.0,94988.0,33.8900747]
[1746432542952,5.76520351,94989.0,94988.0,33.8900747]
[1746432543358,5.76420351,94989.0,94988.0,33.8900747]
[1746432543988,5.76320351,94989.0,94988.0,33.8900747]
[1746432544413,5.76620351,94989.0,94988.0,33.8900747]
[1746432544637,5.76820351,94989.0,94988.0,33.8910747]
[1746432545198,5.76320351,94989.0,94988.0,33.8900747]
[1746432545426,5.76820351,94989.0,94988.0,33.8910747]
[1746432547600,1.29896551,94989.0,94988.0,33.8910747]
[1746432548687,6.29896551,94989.0,94988.0,33.8910747]
[1746432548898,6.19344522,94989.0,94988.0,33.8910747]
[1746432550235,6.20995314,94989.0,94988.0,33.8910747]
[1746432555715,6.19344522,94989.0,94988.0,33.8910747]
[1746432556788,6.19444522,94989.0,94988.0,33.8910747]
[1746432558566,6.24444522,94989.0,94988.0,33.8910747]
[1746432558772,6.27094632,94989.0,94988.0,33.8910747]
[1746432559046,6.28745427,94989.0,94988.0,33.8910747]
[1746432559274,6.39297456,94989.0,94988.0,33.8910747]
[1746432559633,6.33797456,94989.0,94988.0,33.8900747]
[1746432559801,6.38797456,94989.0,94988.0,33.8900747]
[1746432560009,1.39597456,94989.0,94988.0,33.8900747]
[1746432560205,6.39597456,94989.0,94988.0,33.8900747]
[1746432561058,6.39297456,94989.0,94988.0,33.8900747]
[1746432561269,6.38797456,94989.0,94988.0,33.8900747]
[1746432561580,6.39697456,94989.0,94988.0,33.8900747]
[1746432562461,6.89697456,94989.0,94988.0,33.8900747]
[1746432565694,6.88046661,94989.0,94988.0,33.8900747]
[1746432568056,6.87046661,94989.0,94988.0,31.41971518]
[1746432568192,6.87046661,94989.0,94988.0,30.36402228]
[1746432568395,6.84083502,94989.0,94988.0,29.5194254]
[1746432568619,6.84083502,94989.0,94988.0,27.83030431]
[1746432568819,6.87050274,94989.0,94988.0,26.56352993]
[1746432569019,6.88301337,94989.0,94988.0,25.91815014]
[1746432569342,6.85334565,94989.0,94988.0,25.28445666]
[1746432569541,6.94322475,94989.0,94988.0,24.96760992]
[1746432569739,6.90855354,94989.0,94988.0,24.6175895]
[1746432569941,6.90628445,94989.0,94988.0,24.6175895]
[1746432570143,6.86007656,94989.0,94988.0,23.52360058]
[1746432570318,6.86007656,94989.0,94988.0,23.10119242]
[1746432570647,6.86007656,94989.0,94988.0,22.46750564]
[1746432570808,1.91228445,94989.0,94988.0,21.83381886]
[1746432571005,6.91228445,94989.0,94988.0,20.60196679]
[1746432571258,6.91228445,94989.0,94988.0,20.27344378]
[1746432571457,6.91228445,94989.0,94988.0,19.95660039]
[1746432571662,6.91228445,94989.0,94988.0,19.639757]
[1746432571866,6.91228445,94989.0,94988.0,19.32291361]
[1746432572067,6.86007656,94989.0,94988.0,16.28071793]
[1746432572268,6.84356593,94989.0,94988.0,16.28071793]
[1746432572473,6.86007628,94989.0,94988.0,16.28071793]
[1746432573123,6.86007628,94989.0,94988.0,15.74851059]
[1746432573249,6.05592617,94989.0,94988.0,15.32609796]
[1746432573456,6.00371828,94989.0,94988.0,14.68072486]
[1746432573656,6.00371828,94989.0,94988.0,14.04703138]
[1746432574079,6.00371828,94989.0,94988.0,12.45255858]
[1746432574668,6.02914142,94989.0,94988.0,12.45255858]
[1746432575513,6.02914142,94989.0,94988.0,12.04959812]
[1746432575709,6.01263107,94989.0,94988.0,11.83665412]
[1746432576093,5.32168007,94989.0,94988.0,11.83665412]
[1746432577157,5.35131155,94989.0,94988.0,11.82497865]
[1746432577289,5.35131155,94989.0,94988.0,11.6150532]
[1746432578129,5.35131155,94989.0,94988.0,11.15013868]
[1746432579161,5.42003009,94989.0,94988.0,10.83329194]
[1746432580357,5.3678222,94989.0,94988.0,9.86709642]
[1746432580584,5.3678222,94989.0,94988.0,9.55024968]
[1746432580585,5.33819072,94989.0,94988.0,9.55024968]
[1746432582464,5.33819072,94989.0,94988.0,9.42861326]
[1746432584160,5.36779011,94989.0,94988.0,9.42861326]
[1746432584513,5.36779011,94989.0,94988.0,9.30697684]
[1746432586540,5.35127946,94989.0,94988.0,9.30697684]
[1746432586977,5.35127946,94989.0,94988.0,9.32347684]
[1746432587125,5.35127946,94989.0,94988.0,9.30697684]
[1746432590019,5.35127946,94989.0,94988.0,9.18534042]
[1746432590226,1.87093546,94989.0,94988.0,9.18534042]
[1746432590431,6.70799146,94989.0,94988.0,9.18534042]
[1746432590827,6.72450202,94989.0,94988.0,9.18534042]
[1746432593995,6.72450202,94989.0,94988.0,9.05202853]
[1746432595668,6.70799146,94989.0,94988.0,9.05202853]
[1746432597897,6.73970646,94989.0,94988.0,9.05202853]
[1746432598787,6.73970646,94989.0,94988.0,9.06722853]
[1746432598914,6.7562171,94989.0,94988.0,9.06722853]
[1746432600558,6.7552171,94989.0,94988.0,8.96189211]
[1746432600742,5.47589257,94989.0,94988.0,8.96189211]
[1746432601007,5.37963672,94989.0,94988.0,8.96189211]
[1746432601221,4.94998708,94989.0,94988.0,8.96189211]
[1746432601438,4.92601582,94989.0,94988.0,8.96189211]
[1746432601649,5.03153611,94989.0,94988.0,8.96189211]
[1746432602143,4.59007696,94989.0,94988.0,8.96189211]
[1746432602299,4.58407696,94989.0,94988.0,8.96189211]
[1746432602504,4.58907696,94989.0,94988.0,8.96189211]
[1746432604522,4.60558641,94989.0,94988.0,8.96189211]
[1746432606294,1.33803996,94989.0,94988.0,8.96189211]
[1746432606438,6.17509596,94989.0,94988.0,8.96189211]
[1746432607604,6.12509596,94989.0,94988.0,8.96189211]
[1746432607779,6.17509596,94989.0,94988.0,8.96189211]
[1746432610778,6.20159706,94989.0,94988.0,8.96189211]
[1746432614693,6.21810659,94989.0,94988.0,8.96189211]
[1746432616484,6.20159706,94989.0,94988.0,8.96189211]
[1746432618043,6.15159706,94989.0,94988.0,8.96189211]
[1746432618697,6.20159706,94989.0,94988.0,8.96189211]
[1746432618907,6.17509596,94989.0,94988.0,8.96189211]
[1746432619520,6.19160523,94989.0,94988.0,8.96189211]
[1746432623208,6.14160523,94989.0,94988.0,8.96189211]
[1746432623441,6.19160523,94989.0,94988.0,8.96189211]
[1746432625923,6.14160523,94989.0,94988.0,8.96189211]
[1746432626805,6.12509596,94989.0,94988.0,8.96189211]
[1746432627010,6.17509596,94989.0,94988.0,8.96189211]
[1746432629800,6.12509596,94989.0,94988.0,8.96189211]
[1746432630004,6.17509596,94989.0,94988.0,8.96189211]
[1746432630405,6.12509596,94989.0,94988.0,8.96189211]
[1746432630535,6.17509596,94989.0,94988.0,8.96189211]
[1746432630952,6.19160548,94989.0,94988.0,8.96189211]
[1746432633651,1.35454948,94989.0,94988.0,8.96189211]
[1746432634174,6.19160548,94989.0,94988.0,8.96189211]
[1746432636508,6.17509596,94989.0,94988.0,8.96189211]
[1746432640853,6.19160566,94989.0,94988.0,8.96189211]
[1746432642960,6.21140171,94989.0,94988.0,8.96189211]
[1746432643166,6.23974623,94989.0,94988.0,8.93039211]
[1746432643953,6.23774623,94989.0,94988.0,8.93039211]
[1746432644248,6.23874623,94989.0,94988.0,8.94639211]
[1746432644475,6.23874623,94989.0,94988.0,8.96229211]
[1746432645010,6.24174623,94989.0,94988.0,8.96229211]
[1746432645555,6.21340171,94989.0,94988.0,8.96229211]
[1746432646472,6.19689201,94989.0,94988.0,8.96229211]
[1746432646858,6.17709596,94989.0,94988.0,8.96229211]
[1746432647960,6.20880796,94989.0,94988.0,8.96229211]
[1746432650818,6.24511615,94989.0,94988.0,8.96229211]
[1746432652148,6.28346067,94989.0,94988.0,8.93039211]
[1746432652977,6.28046067,94989.0,94988.0,8.93039211]
[1746432653159,6.28746067,94989.0,94988.0,8.93039211]
[1746432653372,6.78746067,94989.0,94988.0,8.93039211]
[1746432653554,6.78046067,94989.0,94988.0,8.93039211]
[1746432653973,6.78546067,94989.0,94988.0,8.93039211]
[1746432654339,6.77946067,94989.0,94988.0,8.93039211]
[1746432654680,6.78646067,94989.0,94988.0,8.93039211]
[1746432658189,1.94940467,94989.0,94988.0,8.93039211]
[1746432658440,6.78646067,94989.0,94988.0,8.93039211]
[1746432659746,6.76995066,94989.0,94988.0,8.93039211]
[1746432662197,6.76995066,94989.0,94988.0,8.96119211]
[1746432663749,6.78646105,94989.0,94988.0,8.96119211]
[1746432666445,6.76995066,94989.0,94988.0,8.96119211]
[1746432669410,6.78646104,94989.0,94988.0,8.96119211]
[1746432670957,1.94940504,94989.0,94988.0,8.96119211]
[1746432671164,6.78646104,94989.0,94988.0,8.96119211]
[1746432672022,6.78646104,94989.0,94988.0,8.93039211]
[1746432672385,6.15110104,94989.0,94988.0,8.93039211]
[1746432672788,6.15110104,94989.0,94988.0,8.94579211]
[1746432676490,6.15110104,94989.0,94988.0,8.96119211]
[1746432679655,6.13459066,94989.0,94988.0,8.96119211]
[1746432681891,1.93289466,94989.0,94988.0,8.96119211]
[1746432682094,6.76995066,94989.0,94988.0,8.96119211]
[1746432682490,6.78646107,94989.0,94988.0,8.96119211]
[1746432687999,6.76666289,94989.0,94988.0,8.96119211]
[1746432689936,6.75015248,94989.0,94988.0,8.96119211]
[1746432692594,6.7666628,94989.0,94988.0,8.96119211]
[1746432699798,6.75015248,94989.0,94988.0,8.96119211]
[1746432703958,6.76666283,94989.0,94988.0,8.96119211]
[1746432706593,6.75015248,94989.0,94988.0,8.96119211]
[1746432707778,1.91309648,94989.0,94988.0,8.96119211]
[1746432708227,6.75015248,94989.0,94988.0,8.96119211]
[1746432709740,6.76666284,94989.0,94988.0,8.96119211]
[1746432710036,6.75015248,94989.0,94988.0,8.96119211]
[1746432713089,6.76666285,94989.0,94988.0,8.96119211]
[1746432719848,6.75015248,94989.0,94988.0,8.96119211]
[1746432721503,6.54420293,94989.0,94988.0,8.96119211]
[1746432721710,5.10113393,94989.0,94988.0,8.96119211]
[1746432722458,5.11764403,94989.0,94988.0,8.96119211]
[1746432724326,1.77971303,94989.0,94988.0,8.96119211]
[1746432725004,6.57092103,94989.0,94988.0,8.96119211]
[1746432725252,1.77971303,94989.0,94988.0,8.96119211]
[1746432725398,6.16612454,94989.0,94988.0,8.96119211]
[1746432725568,5.85783354,94989.0,94988.0,8.96119211]
[1746432729788,5.84132344,94989.0,94988.0,8.96119211]
[1746432732901,5.86735218,94989.0,94988.0,8.96119211]
[1746432733546,5.88715207,94989.0,94988.0,8.96119211]
[1746432734049,5.90366219,94989.0,94988.0,8.96119211]
[1746432736453,5.88715207,94989.0,94988.0,8.96119211]
[1746432738416,1.92060659,94989.0,94988.0,8.96119211]
[1746432738621,6.75766259,94989.0,94988.0,8.89155442]
[1746432739439,5.62289202,94989.0,94988.0,8.81169347]
[1746432739641,5.63089202,94989.0,94988.0,8.81169347]
[1746432740456,5.62389202,94989.0,94988.0,8.81169347]
[1746432740605,5.61589202,94989.0,94988.0,8.81169347]
[1746432741157,5.62489202,94989.0,94988.0,8.81169347]
[1746432741392,5.62489202,94989.0,94988.0,8.67838158]
[1746432741589,5.61589202,94989.0,94988.0,8.67838158]
[1746432741969,5.62589202,94989.0,94988.0,8.67838158]
[1746432742167,5.63389202,94989.0,94988.0,8.67838158]
[1746432746434,5.61738159,94989.0,94988.0,8.67838158]
[1746432749073,5.6338921,94989.0,94988.0,8.67838158]
[1746432749485,5.6338921,94989.0,94988.0,8.44603553]
[1746432750506,5.60554758,94989.0,94988.0,8.44603553]
[1746432751413,5.60554758,94989.0,94988.0,8.20935331]
[1746432753438,5.60554758,94989.0,94988.0,8.07604142]
[1746432755484,5.60554758,94989.0,94988.0,7.84276503]
[1746432756457,1.91477258,94989.0,94988.0,7.84276503]
[1746432756783,1.89826207,94989.0,94988.0,7.84276503]
[1746432757387,6.34126807,94989.0,94988.0,7.83108956]
[1746432757526,5.88440707,94989.0,94988.0,7.72112861]
[1746432757726,5.74980107,94989.0,94988.0,7.72112861]
[1746432759981,5.76631148,94989.0,94988.0,7.72112861]
[1746432761912,5.55708348,94989.0,94988.0,7.72112861]
[1746432762116,6.05708348,94989.0,94988.0,7.72112861]
[1746432765632,5.55708348,94989.0,94988.0,7.72112861]
[1746432766913,5.54057307,94989.0,94988.0,7.72112861]
[1746432770989,5.5570834,94989.0,94988.0,7.72112861]
[1746432776229,5.58542792,94989.0,94988.0,7.72112861]
[1746432776430,1.94311692,94989.0,94988.0,7.72112861]
[1746432776581,1.92660659,94989.0,94988.0,7.72112861]
[1746432776944,6.09388059,94989.0,94988.0,7.72112861]
[1746432780845,6.11039092,94989.0,94988.0,7.72112861]
[1746432786482,6.09388059,94989.0,94988.0,7.72112861]
[1746432786683,5.89996059,94989.0,94988.0,7.72112861]
[1746432786895,5.84247359,94989.0,94988.0,7.72112861]
[1746432787101,5.76839359,94989.0,94988.0,7.72112861]
[1746432787318,5.75783159,94989.0,94988.0,7.72112861]
[1746432788452,5.75783159,94989.0,94988.0,7.70411673]
[1746432788660,5.75783159,94989.0,94988.0,7.70317947]
[1746432789755,5.85804959,94989.0,94988.0,7.70317947]
[1746432789906,5.75829159,94989.0,94988.0,7.70317947]
[1746432790724,5.21628582,94989.0,94988.0,7.70317947]
[1746432790931,5.23279606,94989.0,94988.0,7.70317947]
[1746432792193,4.75219506,94989.0,94988.0,7.70317947]
[1746432792379,4.13435906,94989.0,94988.0,7.70317947]
[1746432792716,4.11455917,94989.0,94988.0,7.70317947]
[1746432793668,4.06455917,94989.0,94988.0,7.70317947]
[1746432794293,4.08436163,94989.0,94988.0,7.70317947]
[1746432794485,4.10514752,94989.0,94988.0,7.70317947]
[1746432796440,4.08863728,94989.0,94988.0,7.70317947]
[1746432799310,4.11466602,94989.0,94988.0,7.70317947]
[1746432800179,4.14301054,94989.0,94988.0,7.70317947]
[1746432801066,4.15952066,94989.0,94988.0,7.70317947]
[1746432801629,4.15952066,94989.0,94988.0,7.69050236]
[1746432802846,4.13873477,94989.0,94988.0,7.69050236]
[1746432806600,4.12222465,94989.0,94988.0,7.69050236]
[1746432809551,1.79337865,94989.0,94988.0,7.69050236]
[1746432809766,6.64110579,94989.0,94988.0,7.69050236]
[1746432809960,1.80988879,94989.0,94988.0,7.69050236]
[1746432810159,5.80060308,94989.0,94988.0,7.69050236]
[1746432811860,5.80060308,94989.0,94988.0,7.67782541]
[1746432815582,4.66025608,94989.0,94988.0,7.67782541]
[1746432815873,4.57837808,94989.0,94988.0,7.67782541]
[1746432816301,4.53842308,94989.0,94988.0,7.67782541]
[1746432820774,4.46841008,94989.0,94988.0,7.67782541]
[1746432820959,4.17625408,94989.0,94988.0,7.67782541]
[1746432822046,4.17625408,94989.0,94988.0,7.66514877]
[1746432822472,4.00358727,94989.0,94988.0,7.66514877]
[1746432822794,3.93584653,94989.0,94988.0,7.66514877]
[1746432823732,3.92584653,94989.0,94988.0,7.66514877]
[1746432823960,3.91784653,94989.0,94988.0,7.66514877]
[1746432824140,3.92484653,94989.0,94988.0,7.66514877]
[1746432824447,3.93084653,94989.0,94988.0,7.66514877]
[1746432826214,4.03636682,94989.0,94988.0,7.66514877]
[1746432826421,3.93084653,94989.0,94988.0,7.66514877]
[1746432826646,3.91433639,94989.0,94988.0,7.66514877]
[1746432829725,3.91433639,94989.0,94988.0,7.66514877]
[1746432829952,3.93084606,94989.0,94988.0,7.66514877]
[1746432830240,3.9110436,94989.0,94988.0,7.66514877]
[1746432831369,3.93082761,94989.0,94988.0,7.66514877]
[1746432831946,1.70878461,94989.0,94988.0,7.66514877]
[1746432832197,6.54584061,94989.0,94988.0,7.66514877]
[1746432832325,6.04888261,94989.0,94988.0,7.66514877]
[1746432832530,6.01559261,94989.0,94988.0,7.66514877]
[1746432834278,6.04162135,94989.0,94988.0,7.66514877]
[1746432836500,6.02511168,94989.0,94988.0,7.66514877]
[1746432839809,6.04162137,94989.0,94988.0,7.66514877]
[1746432840676,5.92612037,94989.0,94988.0,7.66514877]
[1746432841376,4.24646078,94989.0,94988.0,7.66514877]
[1746432842076,4.24121762,94989.0,94988.0,7.66514877]
[1746432842905,3.74121762,94989.0,94988.0,7.66514877]
[1746432844078,3.40121762,94989.0,94988.0,7.66514877]
[1746432844289,2.64041677,94989.0,94988.0,7.66514877]
[1746432844605,0.81785977,94989.0,94988.0,7.66514877]
[1746432844941,4.04949177,94989.0,94988.0,7.66514877]
[1746432845150,3.90794877,94989.0,94988.0,7.66514877]
[1746432845291,3.65058977,94989.0,94988.0,7.66476245]
[1746432845503,3.98458977,94989.0,94988.0,7.66476245]
[1746432845909,3.53663477,94989.0,94988.0,7.66476245]
[1746432846120,3.52963477,94989.0,94988.0,7.66476245]
[1746432846317,3.53163477,94989.0,94988.0,7.66476245]
[1746432846651,3.52463477,94989.0,94988.0,7.66476245]
[1746432846857,3.52763477,94989.0,94988.0,7.66476245]
[1746432847267,3.53263477,94989.0,94988.0,7.66476245]
[1746432849915,3.51612508,94989.0,94988.0,7.66476245]
[1746432854219,3.60164663,94989.0,94988.0,7.66476245]
[1746432855201,3.62139895,94989.0,94988.0,7.66476245]
[1746432856212,3.65310495,94989.0,94988.0,7.66476245]
[1746432856416,3.63335263,94989.0,94988.0,7.66476245]
[1746432856652,3.61684524,94989.0,94988.0,7.66476245]
[1746432861139,3.61784524,94989.0,94988.0,7.63466245]
[1746432862272,3.63760687,94989.0,94988.0,7.63466245]
[1746432863845,3.65411521,94989.0,94988.0,7.63466245]
[1746432864428,3.63435358,94989.0,94988.0,7.63466245]
[1746432864574,3.73386385,94989.0,94988.0,7.63466245]
[1746432865404,3.73362889,94989.0,94988.0,7.63466245]
[1746432866376,3.63111862,94989.0,94988.0,7.63466245]
[1746432866501,3.62911862,94989.0,94988.0,7.63466245]
[1746432866702,3.63611862,94989.0,94988.0,7.63466245]
[1746432868152,3.63311862,94989.0,94988.0,7.63466245]
[1746432868352,4.13311862,94989.0,94988.0,7.63466245]
[1746432868551,4.24363891,94989.0,94988.0,7.63466245]
[1746432869390,4.22713057,94989.0,94988.0,7.63466245]
[1746432870955,1.83075557,94989.0,94988.0,7.63466245]
[1746432871293,6.66781157,94989.0,94988.0,7.63466245]
[1746432873251,6.56229128,94989.0,94988.0,7.63466245]
[1746432873621,6.57880072,94989.0,94988.0,7.63466245]
[1746432875590,6.53994972,94989.0,94988.0,7.63466245]
[1746432876457,6.52344028,94989.0,94988.0,7.63466245]
[1746432876877,6.41894828,94989.0,94988.0,7.63466245]
[1746432877982,6.41894405,94989.0,94988.0,7.63466245]
[1746432880581,6.52446434,94989.0,94988.0,7.63466245]
[1746432881041,6.54097379,94989.0,94988.0,7.63466245]
[1746432881541,1.84726079,94989.0,94988.0,7.63466245]
[1746432882102,6.5787965,94989.0,94988.0,7.63466245]
[1746432884670,6.5787965,94989.0,94988.0,6.16671715]
[1746432884822,6.5787965,94989.0,94988.0,5.7444616]
[1746432885028,6.5787965,94989.0,94988.0,4.89995597]
[1746432885254,6.5787965,94989.0,94988.0,4.47770042]
[1746432885430,6.55903569,94989.0,94988.0,4.47770042]
[1746432886291,6.47502243,94989.0,94988.0,4.47770042]
[1746432886486,6.54656068,94989.0,94988.0,4.47770042]
[1746432887547,6.53005123,94989.0,94988.0,4.47770042]
[1746432887747,6.45851298,94989.0,94988.0,4.47770042]
[1746432888642,6.45835373,94989.0,94988.0,4.47770042]
[1746432888874,6.40240673,94989.0,94988.0,4.47770042]
[1746432889080,5.50681373,94989.0,94988.0,4.47770042]
[1746432891905,5.52332292,94989.0,94988.0,4.47770042]
[1746432892446,5.59600313,94989.0,94988.0,4.47770042]
[1746432896707,5.57949394,94989.0,94988.0,4.47770042]
[1746432899240,5.50681373,94989.0,94988.0,4.47770042]
[1746432899430,5.50681373,94989.0,94988.0,4.49380042]
[1746432899733,5.52332298,94989.0,94988.0,4.49380042]
[1746432900573,5.50354424,94989.0,94988.0,4.49380042]
[1746432900773,5.48703499,94989.0,94988.0,4.49380042]
[1746432901388,5.59255528,94989.0,94988.0,4.49380042]
[1746432903849,5.60906447,94989.0,94988.0,4.49380042]
[1746432904660,5.60906447,94989.0,94988.0,4.47770042]
[1746432904808,5.66046447,94989.0,94988.0,3.56269174]
[1746432905417,1.87874047,94989.0,94988.0,3.56269174]
[1746432905611,6.70379647,94989.0,94988.0,3.56269174]
[1746432905927,6.70379647,94989.0,94988.0,3.33547333]
[1746432906560,6.70628728,94989.0,94988.0,3.33547333]
[1746432908945,6.70628728,94989.0,94988.0,3.22551238]
[1746432909342,6.72279813,94989.0,94988.0,3.22551238]
[1746432910310,6.72279813,94989.0,94988.0,3.19900886]
[1746432910478,6.7425738,94989.0,94988.0,3.19900886]
[1746432911090,6.7425738,94989.0,94988.0,2.98908341]
[1746432911297,6.72279813,94989.0,94988.0,2.98908341]
[1746432912467,6.70709813,94989.0,94988.0,2.98908341]
[1746432912669,6.69139813,94989.0,94988.0,2.98908341]
[1746432913190,6.69139813,94989.0,94988.0,2.75580702]
[1746432914380,6.69139813,94989.0,94988.0,2.74413155]
[1746432914803,6.69139813,94989.0,94988.0,2.64416705]
[1746432915010,6.69139813,94989.0,94988.0,2.5342061]
[1746432915767,6.69139813,94989.0,94988.0,2.52253063]
[1746432916184,6.69139813,94989.0,94988.0,2.42256613]
[1746432916551,6.67488728,94989.0,94988.0,2.42256613]
[1746432917066,6.67488728,94989.0,94988.0,2.18928974]
[1746432917394,6.67488728,94989.0,94988.0,2.08932524]
[1746432918499,6.67488728,94989.0,94988.0,2.07764977]
[1746432918750,6.67488728,94989.0,94988.0,1.97768527]
[1746432919103,6.67488728,94989.0,94988.0,1.76775982]
[1746432919549,6.69139809,94989.0,94988.0,1.76775982]
[1746432919746,6.69139809,94989.0,94988.0,1.75608435]
[1746432919926,1.85434209,94989.0,94988.0,1.65611985]
[1746432920326,1.83783128,94989.0,94988.0,1.65611985]
[1746432920534,6.67488728,94989.0,94988.0,1.65611985]
[1746432921276,6.67488728,94989.0,94988.0,1.42284346]
[1746432921408,6.67488728,94989.0,94988.0,1.32287896]
[1746432922256,6.64875849,94989.0,94988.0,1.32287896]
[1746432922479,6.64875849,94989.0,94988.0,1.31120349]
[1746432922817,6.64875849,94989.0,94988.0,1.21123899]
[1746432923294,6.64875849,94989.0,94988.0,1.10127804]
[1746432923516,6.66526928,94989.0,94988.0,1.10127804]
[1746432923801,7.16526928,94989.0,94988.0,1.10127804]
[1746432924021,7.16526928,94989.0,94988.0,1.08960257]
[1746432924436,7.16526928,94989.0,94988.0,0.9779626]
[1746432925031,7.16526928,94989.0,94988.0,0.76827706]
[1746432925400,7.16526928,94989.0,94988.0,0.75660159]
[1746432926756,7.16526928,94989.0,94988.0,0.74492612]
[1746432926957,7.16526928,94989.0,94988.0,0.64496162]
[1746432927205,7.16526928,94989.0,94988.0,0.53500067]
[1746432928079,7.14875849,94989.0,94988.0,0.5233252]
[1746432928408,7.14875849,94989.0,94988.0,0.4233607]
[1746432929118,7.14875849,94989.0,94988.0,0.21343525]
[1746432930292,0.01554085,94979.0,94978.0,0.015]
[1746432930486,1.04060227,94979.0,94978.0,0.015]
[1746432930687,1.1446625,94979.0,94978.0,0.0316]
[1746432930886,0.01554085,94972.0,94971.0,0.015]
[1746432931108,5.38105888,94972.0,94971.0,0.015]
[1746432931318,5.41065827,94972.0,94971.0,0.015]
[1746432931509,5.41391424,94972.0,94971.0,0.0315]
[1746432931750,5.54556008,94972.0,94971.0,0.0315]
[1746432932152,5.57334491,94972.0,94971.0,0.0315]
[1746432933029,5.60180694,94972.0,94971.0,0.0315]
[1746432933236,5.60580694,94972.0,94971.0,0.0315]
[1746432933441,0.56616249,94957.0,94956.0,0.08402964]
[1746432933640,6.121923,94957.0,94956.0,0.08402964]
[1746432933838,6.14804855,94957.0,94956.0,0.08402964]
[1746432934058,6.14804855,94957.0,94956.0,0.11512964]
[1746432934059,6.19628175,94957.0,94956.0,0.11512964]
[1746432934469,6.17649692,94957.0,94956.0,0.11512964]
[1746432934669,6.18349692,94957.0,94956.0,0.11512964]
[1746432934868,6.17849692,94957.0,94956.0,0.0311]
[1746432935151,6.15737137,94957.0,94956.0,0.0311]
[1746432935972,6.65737137,94957.0,94956.0,0.0311]
[1746432936400,6.65037137,94957.0,94956.0,0.0311]
[1746432936647,6.10656137,94957.0,94956.0,0.0311]
[1746432936909,6.10956137,94957.0,94956.0,0.0311]
[1746432937265,5.38352837,94957.0,94956.0,0.0311]
[1746432937969,5.38752837,94957.0,94956.0,0.0311]
[1746432938327,5.37575637,94957.0,94956.0,0.0311]
[1746432938873,1.32431537,94957.0,94956.0,0.0311]
[1746432939186,5.72599537,94957.0,94956.0,0.0311]
[1746432939335,5.78092537,94957.0,94956.0,0.0311]
[1746432939723,5.40866337,94957.0,94956.0,0.0311]
[1746432940353,4.74962408,94957.0,94956.0,0.0311]
[1746432940557,4.38508323,94957.0,94956.0,0.0311]
[1746432940710,1.71226623,94957.0,94956.0,0.0321]
[1746432940910,2.02054623,94957.0,94956.0,0.0321]
[1746432941208,2.00403303,94957.0,94956.0,0.0321]
[1746432941772,2.00003303,94957.0,94956.0,0.0321]
[1746432942647,1.99303303,94957.0,94956.0,0.0321]
[1746432942912,2.00003303,94957.0,94956.0,0.0321]
[1746432943714,2.00403303,94957.0,94956.0,0.0321]
[1746432944232,2.00003303,94957.0,94956.0,0.0321]
[1746432944618,2.00303303,94957.0,94956.0,0.0321]
[1746432944940,2.04567077,94957.0,94956.0,0.0321]
[1746432945347,2.15119106,94957.0,94956.0,0.0321]
[1746432947137,2.00303303,94957.0,94956.0,0.0321]
[1746432947867,2.01954542,94957.0,94956.0,0.0321]
[1746432950764,2.00303303,94957.0,94956.0,0.0321]
[1746432952592,2.0195449,94957.0,94956.0,0.0321]
[1746432956596,1.1283329,94957.0,94956.0,0.0321]
[1746432957031,4.9289149,94957.0,94956.0,0.0321]
[1746432957590,4.98350248,94957.0,94956.0,0.0321]
[1746432958608,4.96699061,94957.0,94956.0,0.0321]
[1746432959193,5.0725109,94957.0,94956.0,0.0321]
[1746432959963,4.96699061,94957.0,94956.0,0.0321]
[1746432961797,4.98350259,94957.0,94956.0,0.0321]
[1746432961993,4.96699061,94957.0,94956.0,0.0321]
[1746432962698,4.93852858,94957.0,94956.0,0.0321]
[1746432963255,4.91240303,94957.0,94956.0,0.0321]
[1746432965384,4.92891605,94957.0,94956.0,0.0321]
[1746432966217,2.00115905,94957.0,94956.0,0.0321]
[1746432966417,1.62695803,94957.0,94956.0,0.0321]
[1746432966620,1.00156403,94957.0,94956.0,0.0321]
[1746432966816,0.78182103,94957.0,94956.0,0.0321]
[1746432967035,1.12182103,94957.0,94956.0,0.0321]